Cogmind - Beta 13 @@@ ROGUE MODE // 2024.05.01 @ 13:50:54 Player: BrainTooSmol Result: Destroyed by G-47 Trooper with Particle Gun Performance ------------- Evolutions (2) 1000 Regions Visited (5) 1000 Robots Destroyed (52) 260 Value Destroyed (1494) 1494 Prototype IDs (1) 20 Alien Tech Used (0) 0 Bonus (0) 0 TOTAL SCORE: 3774 Bonus ------- None Cogmind --------- Core Integrity 0/550 Matter 300/300 Energy 235/240 System Corruption 0% Temperature Cool (9) Movement Rolling (120) Ox2 Location -8/Materials Parts ------- > --- POWER (1) -------- Nuclear Core > --- PROPULSION (2) --- Armored Wheel Armored Wheel > --- UTILITY (6) ------ Heat Sink High-capacity Storage Unit Advanced Visual Processing Unit Melee Analysis Suite > --- WEAPON (2) ------- Great Axe > --- INVENTORY (20) --- Light Nuclear Core Light Treads Armored Wheel High-capacity Matter Pod (200) High-capacity Matter Pod (200) Advanced Weight Redist. System Trap Scanner Experimental Sensor Array Signal Interpreter ECM Suite Reactive Plating Particle Gun Shotgun Mini Grenade Launcher Datajack Peak State ------------ > --- POWER ------------ Nuclear Core > --- PROPULSION ------- Wheel Armored Wheel > --- UTILITY ---------- Cooling System High-capacity Storage Unit Advanced Visual Processing Unit Seismic Detector Melee Analysis Suite > --- WEAPON ----------- Beam Rifle Particle Gun > --- INVENTORY -------- Light Nuclear Core Armored Wheel Armored Wheel Armored Wheel High-capacity Matter Pod High-capacity Matter Pod Trap Scanner Experimental Sensor Array Signal Interpreter ECM Suite Mini Grenade Launcher Datajack Great Axe [Rating: 23] Favorites ----------- Power Light Ion Engine Engine Light Ion Engine Power Core Nuclear Core Propulsion Armored Wheel Treads Light Treads Leg Aluminum Leg Wheel Armored Wheel Utility Seismic Detector Device Seismic Detector Storage High-capacity Storage Unit Processor Advanced Visual Processing Unit Protection Light Armor Plating Weapon Particle Gun Energy Gun Particle Gun Ballistic Gun Assault Rifle Launcher Mini Grenade Launcher Slashing Weapon Great Axe Build | -11 -10 -10 -10 -9 -8 ------- Run | Yrd Mat Min Exi Min Mat Slots Evolved 4 | . . . . . 4 Power . | . . . . . . Propulsion . | . . . . . . Utility 4 | . . . . . 4 Weapon . | . . . . . . Parts Attached 55 | . 20 5 1 3 26 Power 5 | . 2 1 . . 2 Engine 3 | . 2 1 . . . Core 2 | . . . . . 2 Reactor . | . . . . . . Propulsion 20 | . 9 2 . 1 8 Treads 4 | . 3 . . . 1 Leg 4 | . 4 . . . . Wheel 12 | . 2 2 . 1 7 Hover . | . . . . . . Flight . | . . . . . . Utility 11 | . 3 . 1 1 6 Device 5 | . 2 . . 1 2 Storage 2 | . 1 . 1 . . Processor 3 | . . . . . 3 Hackware . | . . . . . . Protection 1 | . . . . . 1 Artifact . | . . . . . . Weapon 19 | . 6 2 . 1 10 Energy Gun 13 | . 5 1 . 1 6 Energy Cannon . | . . . . . . Ballistic Gun 2 | . 1 . . . 1 Ballistic Cannon . | . . . . . . Launcher 3 | . . 1 . . 2 Special Weapon . | . . . . . . Impact Weapon . | . . . . . . Slashing Weapon 1 | . . . . . 1 Piercing Weapon . | . . . . . . Special Melee Weapon . | . . . . . . Unidentified Prototypes 1 | . . . . . 1 Parts Lost 18 | . 2 1 . 1 14 Power 4 | . 2 1 . . 1 Propulsion 5 | . . . . 1 4 Utility 4 | . . . . . 4 Weapon 5 | . . . . . 5 Highest Loss Streak 6 | . 1 1 . 1 6 To Critical Strikes . | . . . . . . Average Slot Usage (%) 91 | . 93 99 100 97 71 Engine 10 | . 12 13 14 14 1 Core 1 | . . . . . 5 Treads 3 | . 8 . . . . Leg 5 | . 15 . . . . Wheel 16 | . 3 28 28 25 14 Device 12 | . 9 14 14 14 13 Storage 12 | . 14 14 14 14 9 Processor 2 | . . . . . 11 Energy Gun 20 | . 18 28 28 28 10 Ballistic Gun 3 | . 9 . . . 1 Naked Turns . | . . . . . . Heaviest Build 56 | 13 30 30 50 51 56 Greatest Support 40 | 20 40 24 20 20 28 Greatest Overweight (x) 5 | . 1 2 2 5 5 Average Overweight (x) 1 | . . 1 1 2 2 Largest Inventory Capacity 20 | 8 15 15 20 20 20 Average Capacity 14 | 8 8 15 18 20 20 Most Carried 17 | 6 8 10 13 16 17 Average Carried 10 | 6 7 8 11 14 13 Final Capacity 20 | 8 15 15 20 20 20 Final Carried 16 | 6 8 10 12 16 15 Class Distribution -------------------- 95% | Mutant 4% | Scavenger-Mutant Dominant Class ---------------- Mutant | -10/Materials Mutant | -10/Mines Mutant | -10/Exiles Mutant | -9/Mines Mutant | -8/Materials Resources | -11 -10 -10 -10 -9 -8 ----------- Run | Yrd Mat Min Exi Min Mat Matter Collected 993 | 221 327 75 20 40 310 Remotely . | . . . . . . Salvage Created 1703 | 93 604 87 . 193 726 Parts 99 | 9 33 6 . 16 35 Haulers Intercepted 1 | . 1 . . . . Recyclers Shooed 2 | . 1 . . . 1 Parts Field Recycled . | . . . . . . Retrieved Matter . | . . . . . . Parts Self-Destructed . | . . . . . . Prevented . | . . . . . . Kills | -11 -10 -10 -10 -9 -8 ------- Run | Yrd Mat Min Exi Min Mat Combat Hostiles Destroyed 40 | . 13 4 . 7 16 Melee 7 | . . . . . 7 Guns 30 | . 13 3 . 7 7 AOE 3 | . . 1 . . 2 Classes Destroyed 11 | 1 5 1 . 1 3 Worker 3 | . 1 1 . 1 . Tunneler 5 | 5 . . . . . Hauler 1 | . 1 . . . . Operator 1 | . . . . . 1 Watcher 3 | . 3 . . . . Swarmer 8 | . 3 . . 5 . Grunt 21 | . 10 2 . . 9 Duelist 2 | . . . . . 2 Sentry 5 | . . . . 2 3 Hunter 2 | . . . . . 2 Assembled 1 | . . 1 . . . Best Kill Streak 5 | 2 5 2 . 3 3 Combat Bots Only 4 | . 4 2 . 2 3 Max Kills in Single Turn 1 | 1 1 1 . 1 1 Gunslinging . | . . . . . . Exploded 1 | . . 1 . . 1 Melee 1 | . . . . . 1 Uniques/NPCs Destroyed 1 | . . 1 . . . YI-UF0 (-10/Mines) Combat | -11 -10 -10 -10 -9 -8 -------- Run | Yrd Mat Min Exi Min Mat Hostile Shots Fired 218 | . 68 12 . 22 116 Missed 44 | . 13 3 . 5 23 Damage Taken 2441 | . 584 165 . 165 1527 Core 728 | . 86 30 . 48 564 Absorbed by Shields . | . . . . . . Core Remaining (%) 67 | 100 . . . 34 . Volleys Fired 139 | 7 58 9 . 14 51 Largest 2 | 2 2 2 . 2 2 Hottest 130 | 60 115 130 . 130 121 Shots Fired 248 | 14 112 16 . 28 78 Gun 236 | 14 112 14 . 28 68 Cannon . | . . . . . . Launcher 12 | . . 2 . . 10 Special . | . . . . . . Kinetic 71 | 7 49 . . . 15 Thermal 165 | 7 63 14 . 28 53 Explosive 12 | . . 2 . . 10 Electromagnetic . | . . . . . . Robot Hit Streak 18 | 3 18 6 . 9 12 Robot Miss Streak 3 | 2 2 1 . 3 2 Penetration Max . | . . . . . . Secondary Targets 1 | . 1 . . . . Max Gunslinging Chain 1 | . 1 . . . . Shots Hit Robots 191 | 7 77 11 . 17 79 Core Hits 88 | 5 30 8 . 10 35 Critical Kills 1 | . 1 . . . . Critical Parts Destroyed . | . . . . . . Critical Strikes 13 | . 4 . . 2 7 Burn 9 | . 3 . . 2 4 Destroy 1 | . 1 . . . . Sever 3 | . . . . . 3 Melee Attacks 22 | . . . . . 22 Impact . | . . . . . . Slashing 22 | . . . . . 22 Piercing . | . . . . . . Sneak Attacks 1 | . . . . . 1 Combat Hostiles . | . . . . . . Follow-up Attacks . | . . . . . . Damage Inflicted 3408 | 85 948 274 . 260 1841 Guns 2186 | 85 948 148 . 260 745 Cannons . | . . . . . . Explosions 554 | . . 126 . . 428 Melee 668 | . . . . . 668 Ramming . | . . . . . . Kinetic 571 | 52 420 . . . 99 Thermal 1615 | 33 528 148 . 260 646 Explosive 554 | . . 126 . . 428 Electromagnetic . | . . . . . . Impact . | . . . . . . Slashing 668 | . . . . . 668 Piercing . | . . . . . . Highest Corruption . | . . . . . . Average Corruption . | . . . . . . Corruption Purged . | . . . . . . Corruption Blocked . | . . . . . . Overload Shots . | . . . . . . Overflow Damage 48 | . . . . . 48 Projectiles . | . . . . . . Explosions . | . . . . . . Melee 48 | . . . . . 48 Knockbacks . | . . . . . . Impact . | . . . . . . Kinetic . | . . . . . . Secondary . | . . . . . . Self-Inflicted Damage 21 | . . 12 . . 9 Shots 2 | . . 1 . . 1 Rammed . | . . . . . . Targets Rammed . | . . . . . . Kicked . | . . . . . . Crushed . | . . . . . . Highest Temperature 310 | 20 310 276 . 30 54 Average Temperature 69 | 20 90 96 . 10 28 Received Heat Transfer 801 | . 282 42 . 18 459 Siege Activations . | . . . . . . Robots Corrupted . | . . . . . . Combat Hostiles . | . . . . . . Parts Fried . | . . . . . . Impact Corruptions . | . . . . . . Robots Melted . | . . . . . . Combat Hostiles . | . . . . . . Parts Melted 10 | . 1 . . 4 5 Heat Transferred 4624 | 75 1478 370 . 777 1924 Parts Sabotaged . | . . . . . . Parts Stolen . | . . . . . . Parts Stripped . | . . . . . . Power Chain Reactions . | . . . . . . Alert | -11 -10 -10 -10 -9 -8 ------- Run | Yrd Mat Min Exi Min Mat Peak Influence 240 | 25 148 60 . 160 240 Initial 27 | . 16 1 . . 27 Average 56 | 11 55 20 . 51 109 Maximum Alert Level 1 | . . . . . 1 Low Security (%) 99 | 100 100 100 . 100 96 Level 1 . | . . . . . 3 Level 2 . | . . . . . . Level 3 . | . . . . . . Level 4 . | . . . . . . Level 5 . | . . . . . . High Security . | . . . . . . Max Security . | . . . . . . Squads Dispatched 5 | . 2 . . . 3 Investigation 1 | . 1 . . . . Extermination . | . . . . . . Reinforcement 3 | . 1 . . . 2 Assault . | . . . . . . Garrison 1 | . . . . . 1 Intercept . | . . . . . . Searches Triggered . | . . . . . . Construction Impeded . | . . . . . . Haulers Reinforced . | . . . . . . Active Scanning Responses . | . . . . . . Cargo Convoy Interrupts . | . . . . . . Stealth | -11 -10 -10 -10 -9 -8 --------- Run | Yrd Mat Min Exi Min Mat Distress Signals 7 | . 2 . . . 5 Communications Jammed . | . . . . . . Distress Signals . | . . . . . . Times Spotted 68 | . 22 4 . 10 32 Peak Tracking Total 6 | . 4 2 . 3 6 Tactical Retreats 5 | . 1 . . 2 2 Traps | -11 -10 -10 -10 -9 -8 ------- Run | Yrd Mat Min Exi Min Mat Traps Triggered 1 | . 1 . . . . Indirectly . | . . . . . . Trap Hack Attempts . | . . . . . . Triggered . | . . . . . . Disarmed . | . . . . . . Reprogrammed . | . . . . . . Reused . | . . . . . . Traps Extracted . | . . . . . . Installed . | . . . . . . Triggered . | . . . . . . Machines | -11 -10 -10 -10 -9 -8 ---------- Run | Yrd Mat Min Exi Min Mat Machines Disabled 1 | . . . . 1 . Max in Single Turn 1 | . . . . 1 . Machines Repaired . | . . . . . . Machines Dismantled . | . . . . . . Machines Sabotaged . | . . . . . . Overloaded Fab Kills . | . . . . . . Hacking | -11 -10 -10 -10 -9 -8 --------- Run | Yrd Mat Min Exi Min Mat Machines Accessed 12 | . 7 . 1 . 4 Terminals 8 | . 6 . . . 2 Fabricators . | . . . . . . Repair Stations . | . . . . . . Recycling Units 3 | . 1 . . . 2 Scanalyzers . | . . . . . . Garrison Access . | . . . . . . Total Hacks 36 | . 24 . 4 . 8 Successful 18 | . 9 . 4 . 5 Failed 18 | . 15 . . . 3 Catastrophic 2 | . 2 . . . . Database Lockouts . | . . . . . . Manual 21 | . 15 . . . 6 Terminals 22 | . 18 . . . 4 Fabricators . | . . . . . . Repair Stations . | . . . . . . Recycling Units 10 | . 6 . . . 4 Scanalyzers . | . . . . . . Garrison Access . | . . . . . . Terminal Hacks 5 | . 1 . 4 . . Record 4 | . . . 4 . . Terminal Index 1 | . 1 . . . . Fabricator Hacks . | . . . . . . Repair Station Hacks . | . . . . . . Recycling Unit Hacks 2 | . 1 . . . 1 Retrieve Components 2 | . 1 . . . 1 Scanalyzer . | . . . . . . Garrison Access Hacks . | . . . . . . Unauthorized Hacks 11 | . 7 . . . 4 Terminals 7 | . 5 . . . 2 Assimilate 2 | . 2 . . . . Botnet 3 | . 2 . . . 1 Operators 2 | . 1 . . . 1 Fabricators . | . . . . . . Repair Stations . | . . . . . . Recycling Units 4 | . 2 . . . 2 Reject 2 | . 1 . . . 1 Mask 2 | . 1 . . . 1 Scanalyzers . | . . . . . . Garrison Access . | . . . . . . Data Cores Recovered . | . . . . . . Used . | . . . . . . Hacking Detections 10 | . 7 . . . 3 Full Trace Events 1 | . 1 . . . . Feedback Events . | . . . . . . Feedback Blocked . | . . . . . . Robot Schematics Acquired . | . . . . . . Robots Built . | . . . . . . Authchips . | . . . . . . Time . | . . . . . . Total Robot Build Rating . | . . . . . . Part Schematics Acquired . | . . . . . . Parts Built . | . . . . . . Authchips . | . . . . . . Time . | . . . . . . Total Part Build Rating . | . . . . . . Parts Repaired . | . . . . . . Time . | . . . . . . Parts Recycled . | . . . . . . Recycled Matter . | . . . . . . Retrieved Matter . | . . . . . . Retrieved Components 3 | . 2 . . . 1 Parts Scanalyzed . | . . . . . . Part Schematics Acquired . | . . . . . . Parts Damaged . | . . . . . . Bothacking | -11 -10 -10 -10 -9 -8 ------------ Run | Yrd Mat Min Exi Min Mat Used RIF Installer . | . . . . . . Robots Hacked . | . . . . . . Non-combat . | . . . . . . Combat . | . . . . . . Robot Hacks Applied . | . . . . . . Relay Couplers Released . | . . . . . . Fabnet Peak Effective % . | . . . . . . Robots Rewired . | . . . . . . Allies Hacked . | . . . . . . Hacks Repelled . | . . . . . . Allies | -11 -10 -10 -10 -9 -8 -------- Run | Yrd Mat Min Exi Min Mat Total Allies 1 | . 1 . . . . Largest Group 1 | . 1 . . . . Highest-Rated Group 10 | . 10 . . . . Highest-Rated Ally 10 | . 10 . . . . Total Orders 1 | . 1 . . . . STAY 1 | . 1 . . . . Ally Attacks . | . . . . . . Total Damage . | . . . . . . Kills . | . . . . . . Allies Corrupted . | . . . . . . Allies Melted . | . . . . . . Intel | -11 -10 -10 -10 -9 -8 ------- Run | Yrd Mat Min Exi Min Mat Robot Analysis Total . | . . . . . . Derelict Logs Recovered 5 | . . 3 . 2 . Drone Launches . | . . . . . . Drone Recoveries . | . . . . . . Exploration | -11 -10 -10 -10 -9 -8 ------------- Run | Yrd Mat Min Exi Min Mat Turns Passed 5019 | 141 1670 1250 272 619 1067 Spaces Moved 2779 | 53 1034 504 260 422 506 Core . | . . . . . . Treads 237 | . 235 . . . 2 Legs 635 | 53 582 . . . . Wheels 1907 | . 217 504 260 422 504 Hover . | . . . . . . Flight . | . . . . . . Fastest Speed 90 | 120 90 95 95 110 105 Average Speed 116 | 120 123 102 103 113 124 Slowest Speed 240 | 120 160 110 110 155 240 Overloaded Moves . | . . . . . . Propulsion Burnouts . | . . . . . . Robots Hopped . | . . . . . . Cave-ins Triggered . | . . . . . . Exploration Rate (%) 65 | 4 96 98 60 95 42 Regions Visited 5 Branch Regions 3 Pre-discovered Areas 6 | . . 2 1 3 . Known Exits Taken . | . . . . . . Unknown Exits Taken 5 | 1 1 1 1 1 . Scrap Searched 2 | . . 1 . 1 . Spaces Dug 23 | . . . . . 23 Terrain Destroyed 75 | . . 24 . . 51 Melee 1 | . . . . . 1 Projectile . | . . . . . . AOE 74 | . . 24 . . 50 Terrain Rammed . | . . . . . . Walls Destroyed . | . . . . . . Machines Disabled . | . . . . . . Actions | -11 -10 -10 -10 -9 -8 --------- Run | Yrd Mat Min Exi Min Mat Total 4270 | 116 1316 1219 263 532 824 Wait 1231 | 57 176 700 . 89 209 Move 2774 | 52 1033 503 259 421 506 Hop . | . . . . . . Pick Up 24 | . 11 . 2 4 7 Fast Attach 20 | . 8 3 . 2 7 Attach 12 | . 1 . . . 11 Detach 4 | . . 2 . . 2 Swap 23 | . 11 2 1 1 8 Drop 21 | . 18 . 1 1 1 Fire 139 | 7 58 9 . 14 51 Melee 22 | . . . . . 22 Ram . | . . . . . . Kick . | . . . . . . Crush . | . . . . . . Escape Stasis . | . . . . . . Rewire . | . . . . . . Trap . | . . . . . . Miscellaneous . | . . . . . . Route ------- -11/Scrapyard -10/Materials (discovered 5 exits: [*Mat x3] / [*Min x2]) -10/Mines (discovered 4 exits: [*Mat x2] / *Exi / [*Sub]) -10/Exiles -9/Mines (discovered 2 exits: *Mat x2) -8/Materials (discovered 1 exit: [*Fac]) History --------- Turn | Location | Event 1 | -11/Scrapyard | Discovered new exit (range 3) 142 | -11/Scrapyard | Entered Materials 302 | -10/Materials | Discovered new exit (range 14) 314 | -10/Materials | Build established: Mutant 455 | -10/Materials | Discovered new exit (range 3) 700 | -10/Materials | Discovered new exit (range 3) 724 | -10/Materials | Discovered new exit (range 16) 1409 | -10/Materials | Discovered new exit (range 8) 1812 | -10/Materials | Entered Mines 1918 | -10/Mines | Assembled infested the area 1923 | -10/Mines | Assisted by a Guerilla fighting off Assembled 1963 | -10/Mines | Discovered new exit (range 12) 2744 | -10/Mines | Learned location of Recycling (-9) 2754 | -10/Mines | Learned Materials stockpile data 2894 | -10/Mines | Destroyed YI-UF0 2962 | -10/Mines | Discovered new exit (range 14) 2971 | -10/Mines | Learned location of Storage (-9) 3050 | -10/Mines | Discovered new exit (range 5) 3058 | -10/Mines | Deemed a non-threat by the Exiles lab entrance 3058 | -10/Mines | Discovered new exit (range 5) 3062 | -10/Mines | Entered Exiles 3088 | -10/Exiles | Met 8R-AWN 3103 | -10/Exiles | Met EX-HEX 3141 | -10/Exiles | Met EX-DEC 3145 | -10/Exiles | Learned location of Zion (-6) 3326 | -10/Exiles | Discovered new exit (range 10) 3334 | -10/Exiles | Entered Mines 3338 | -9/Mines | Core integrity fell below 50% 3486 | -9/Mines | Found a damaged Exp. Sensor Array with a note attached 3489 | -9/Mines | Found Prototype Device 3524 | -9/Mines | Discovered new exit (range 6) 3911 | -9/Mines | Discovered new exit (range 4) 3953 | -9/Mines | Entered Materials 3953 | -8/Materials | Evolved 4 slots: Utility x4 4116 | -8/Materials | Lost 3 parts (1p1n1u) 4355 | -8/Materials | Garrison activated, responded to threat 4466 | -8/Materials | Discovered new exit (range 7) 4534 | -8/Materials | Core integrity fell below 50% 4597 | -8/Materials | Lost 6 parts (1n2u3w) 4881 | -8/Materials | Core integrity fell below 20% 5020 | -8/Materials | Destroyed by G-47 Trooper with Particle Gun Last Messages --------------- 04878_ Wheel destroyed. 04880_ R-06 Scavenger collects Aluminum Leg. 04883_ G-47 Trooper destroyed. 04887_ K-01 Serf collects debris. 04888_ Acquired 20 matter. 04888_ R-06 Scavenger collects Imp. Aluminum Leg. 04888_ R-06 Scavenger collects Melee Analysis Suite. 04890_ K-01 Serf collects debris. 04893_ R-06 Scavenger collects Hvy. Particle Gun. 04897_ R-06 Scavenger collects Imp. Heat Sink. 04898_ K-01 Serf collects debris. 04906_ Connecting with Terminal... 04983_ W-25 Informer sends out distress signal. 05006_ L-31 Rogue destroyed. 05010_ Critical hit (Burn: +37). 05011_ K-01 Serf collects debris. 05014_ R-06 Scavenger collects Imp. Aluminum Leg. 05014_ Critical hit (Burn: +37). 05019_ K-01 Serf cleans the Atomic Centrifuge. 05019_ R-06 Scavenger collects Imp. Aluminum Leg. Map ----- +----------------------------------------------------+ | ?????????????????????????????????????????????????? | | ?????????????????????????????????????????????????? | | ?????????????????????????????????????????????????? | | ?????????????????????????????????????????????????? | | ?????????????????????????????????????????????????? | | ?????????????????????????????????????????????????? | | ????????????????????? ?????????????????????????? | | ????????????????????? ?????????????????????????? | | ????????????????????# ?????????????????????????? | | ????????????????????# ?????????????????????????? | | ????????????????????+ ?????????????????????????? | | ????????????????????# ?????????????????????????? | | ????????????????????# ?????????????????????????? | | ????????????????????# #????????????????????????? | | ?????##+##??????????# #????????????????????????? | | ?????# ??????????# #????????????????????????? | | ????? #??????????# #????????????????????????? | | ?????# #??????????# #????????????????????????? | | ?????# #??????????# #????????????????????????? | | ?????# #??????????# #????????????????????????? | | ?????# #??????????# #????????????????????????? | | ?????# #??????????# ###########??????????????? | | ?????# #??????????# # ! #??????????????? | | ?????# #??????????# # #??????????????? | | ?????# #??????????# # #??????????????? | | ?????# #??????????# #@""" """ #??????????????? | | ?????# #??????????# gk""" """ #??????????????? | | ?????# #??????????# r#r""" """ #??????????????? | | ###### #??????????# # #??????????????? | | #??????????# # #??????????????? | | ############k ###########??????????????? | | #????????????????????????? | | #######+############# #????????????????????????? | | ????? ??????????# #????????????????????????? | | ??? """ """ ????????# #????????????????????????? | | ??# """ """ #???????# #????????????????????????? | | ??# """ """ #??????## ##???????? #?????????????? | | ??# #??????# ####### #?????????????? | | ??# #??????# #o????????????? | | ??# #??????# T +?????????????? | | ??# #??????# #?????????????? | | ??###########??????# ####### #?????????????? | | ???????????????????## ########?? #?????????????? | | ????????????????????# %# #?????????????????? | | ????????????????????# %# #?????????????????? | | ????????????????????# +% """#?????????????????? | | ????????????????????# #% """#?????????????????? | | ????????????????????# # """#?????????????????? | | ????????????????????# # #?????????????????? | | ??????????????####### ########?????????????????? | +----------------------------------------------------+ Best States ------------- Heat Dissipation 53 Energy Generation 14 Energy Capacity 250 Matter Stores 300 Matter Capacity 300 Sight Range 20 Terrain Scan Density 10 Armor Coverage 150 Evasion (%) 55 Targeting Accuracy 6 Melee Accuracy 5 Recoil Reduction 2 Item Schematics ----------------- None Robot Schematics ------------------ None Fabricated ------------ Nothing Alien Tech Used ----------------- None Achievements -------------- None Challenges ------------ None Game ------ Seed AerolevDecoyPenetrator Manual? 0 Play Time 00:41:46 Cumulative 68.0 hours Start 2024.05.01 @ 11:56:46 End 2024.05.01 @ 13:50:54 Sessions 1 Manual Loads 0 Difficulty Rogue Special Mode None Game No. 44 Rogue 44 Adventurer 0 Explorer 0 Win Type - Total 1 Types 1/0/0/0/0/0/0/0/0 Lore% 51 Gallery% 41 Achievement% 39 Wizard Run 0 Options --------- Layout 0 ASCII 0 Keyboard 0 Movement Mouse Keybinds 0 Fullscreen 1 Font 18/SmallcapsGlow Map View 76x50 Zoom Use 0% Tactical HUD 1 Map Filters NONE Filters NONE Steam 1 RUN: 005e657d-e870-4d46-bea2-08172782681d